﻿Department family,Entity,Date,Expense type,Expense area,Supplier,Transaction number,Amount,Description,Supplier Postcode,Expenditure Type,Supplier Type
HM Procurator General and Treasury Solicitor,Government Legal Department,03/08/2021,Advisory External Legal Spend,Commercial Legal Group,Pinsent Masons Llp,229196,33440,Payment for professional services,B4 6BH,Administration,
HM Procurator General and Treasury Solicitor,Government Legal Department,03/08/2021,Advisory External Legal Spend,Commercial Legal Group,Tlt Solicitors,229198,21638,Payment for professional services,BS1 6TP,Administration,
HM Procurator General and Treasury Solicitor,Government Legal Department,03/08/2021,Advisory External Legal Spend,Commercial Legal Group,Tlt Solicitors,229199,29316,Payment for professional services,BS1 6TP,Administration,
HM Procurator General and Treasury Solicitor,Government Legal Department,03/08/2021,Accommodation: Rent,Corporate Resources Group,Cabinet Office,229219,184291.13,"Payment for rent, rates and/or service charges",FY5 3FW,Administration,Public Sector
HM Procurator General and Treasury Solicitor,Government Legal Department,03/08/2021,Agency Staff: Legal,Legal Advisory Group,Alexander Mann Solutions Limited,229223,184291.13,Payment for interim legal professionals,EC2N 3AQ,Administration,
HM Procurator General and Treasury Solicitor,Government Legal Department,03/08/2021,Special Advocate Fees,Legal case disbursements,Special Advocate,960668,54073.11,Payment of Special Advocate's Fee for legal case,Withheld:  Named individual,Administration,
HM Procurator General and Treasury Solicitor,Government Legal Department,05/08/2021,Network Services,Corporate Resources Group,Colt Technology Services,229301,27101.074,Payment for IT network services ,EC3A 7QN,Administration,
HM Procurator General and Treasury Solicitor,Government Legal Department,05/08/2021,Network Services,Corporate Resources Group,Colt Technology Services,229308,27101.074,Payment for IT network services ,EC3A 7QN,Administration,
HM Procurator General and Treasury Solicitor,Government Legal Department,05/08/2021,Maintenance: Software,Corporate Resources Group,Tikit Limited T/A Advanced,229320,23958.33,Payment for IT software maintenance,B1 1RF,Administration,
HM Procurator General and Treasury Solicitor,Government Legal Department,06/08/2021,Agency Staff: Legal,Legal Advisory Group,Alexander Mann Solutions Limited,229273,-173871.09,Refund relating to payment for interim legal professionals,EC2N 3AQ,Administration,
HM Procurator General and Treasury Solicitor,Government Legal Department,06/08/2021,Agency Staff: Legal,Legal Advisory Group,Alexander Mann Solutions Limited,229274,-24596.23,Refund relating to payment for interim legal professionals,EC2N 3AQ,Administration,
HM Procurator General and Treasury Solicitor,Government Legal Department,06/08/2021,Agency Staff: Legal,Litigation Division,Alexander Mann Solutions Limited,229361,44892.5,Payment for interim legal professionals,EC2N 3AQ,Administration,
HM Procurator General and Treasury Solicitor,Government Legal Department,06/08/2021,Agency Staff: Legal,Litigation Division,Alexander Mann Solutions Limited,229363,53165.69,Payment for interim legal professionals,EC2N 3AQ,Administration,
HM Procurator General and Treasury Solicitor,Government Legal Department,06/08/2021,Agency Staff: Legal,Inquiries,Alexander Mann Solutions Limited,229367,27761.09,Payment for interim legal professionals,EC2N 3AQ,Administration,
HM Procurator General and Treasury Solicitor,Government Legal Department,06/08/2021,Agency Staff: Legal,Litigation Division,Alexander Mann Solutions Limited,229371,45813.82,Payment for interim legal professionals,EC2N 3AQ,Administration,
HM Procurator General and Treasury Solicitor,Government Legal Department,06/08/2021,Agency Staff: Legal,Litigation Division,Alexander Mann Solutions Limited,229377,49357.61,Payment for interim legal professionals,EC2N 3AQ,Administration,
HM Procurator General and Treasury Solicitor,Government Legal Department,06/08/2021,Ext Serv:Security Clearances,Corporate Resources Group,Cabinet Office,229389,23043.6,Payment for staff vetting process,FY5 3FW,Administration,Public Sector
HM Procurator General and Treasury Solicitor,Government Legal Department,09/08/2021,Agency Staff: Admin,Legal Advisory Group,Alexander Mann Solutions Limited,229419,68518.22,Payment for agency staff,EC2N 3AQ,Administration,
HM Procurator General and Treasury Solicitor,Government Legal Department,09/08/2021,Agency Staff: Admin,Legal Advisory Group,Alexander Mann Solutions Limited,229420,-66843.77,Refund relating to payment for interim legal professionals,EC2N 3AQ,Administration,
HM Procurator General and Treasury Solicitor,Government Legal Department,09/08/2021,Counsel Fees,Legal case disbursements,Counsel,961484,34140,Payment of Counsel fees for legal cases,Withheld:  Named individual,Administration,
HM Procurator General and Treasury Solicitor,Government Legal Department,12/08/2021,Ext Serv:Security Clearances,Corporate Resources Group,Cabinet Office,229478,204642.7,Payment for staff vetting process,FY5 3FW,Administration,Public Sector
HM Procurator General and Treasury Solicitor,Government Legal Department,12/08/2021,Agency Staff: Legal,Legal Advisory Group,Alexander Mann Solutions Limited,229482,58714.48,Payment for interim legal professionals,EC2N 3AQ,Administration,
HM Procurator General and Treasury Solicitor,Government Legal Department,12/08/2021,Agency Staff: Legal,Legal Advisory Group,Alexander Mann Solutions Limited,229483,-55214.57,Refund relating to payment for interim legal professionals,EC2N 3AQ,Administration,
HM Procurator General and Treasury Solicitor,Government Legal Department,12/08/2021,Expert Report,Legal case disbursements,Withheld:  Named individual,961922,44900,Payment for professional services for legal case,Withheld:  Named individual,Administration,
HM Procurator General and Treasury Solicitor,Government Legal Department,12/08/2021,Solicitor Agent Fees,Legal case disbursements,Dac Beachcroft Llp,962081,23650.5,Payment for professional services for legal case,EC3R 7AA,Administration,
HM Procurator General and Treasury Solicitor,Government Legal Department,13/08/2021,Agency Staff: Legal,Litigation Division,Alexander Mann Solutions Limited,229556,38041.92,Payment for interim legal professionals,EC2N 3AQ,Administration,
HM Procurator General and Treasury Solicitor,Government Legal Department,13/08/2021,Agency Staff: Legal,Litigation Division,Alexander Mann Solutions Limited,229570,57216.66,Payment for interim legal professionals,EC2N 3AQ,Administration,
HM Procurator General and Treasury Solicitor,Government Legal Department,17/08/2021,Maintenance: Software,Corporate Resources Group,Softcat Ltd,229594,211390.78,Payment for IT software maintenance,SL7 1LW,Administration,
HM Procurator General and Treasury Solicitor,Government Legal Department,18/08/2021,Agency Staff: Legal,Legal Advisory Group,Alexander Mann Solutions Limited,229622,190316.32,Payment for interim legal professionals,EC2N 3AQ,Administration,
HM Procurator General and Treasury Solicitor,Government Legal Department,18/08/2021,Agency Staff: Legal,Legal Advisory Group,Alexander Mann Solutions Limited,229624,-184443.88,Refund relating to payment for interim legal professionals,EC2N 3AQ,Administration,
HM Procurator General and Treasury Solicitor,Government Legal Department,23/08/2021,Expert Report,Legal case disbursements,Colliers International Valuation UK Llp,962966,23425,Payment for professional services for legal case,W1U 7GA,Administration,
HM Procurator General and Treasury Solicitor,Government Legal Department,26/08/2021,Agency Staff: Legal,Litigation Division,Alexander Mann Solutions Limited,229863,45234.05,Payment for interim legal professionals,EC2N 3AQ,Administration,
HM Procurator General and Treasury Solicitor,Government Legal Department,26/08/2021,Agency Staff: Legal,Litigation Division,Alexander Mann Solutions Limited,229869,51467.4,Payment for interim legal professionals,EC2N 3AQ,Administration,
HM Procurator General and Treasury Solicitor,Government Legal Department,26/08/2021,Agency Staff: Legal,Litigation Division,Alexander Mann Solutions Limited,229876,22226.76,Payment for interim legal professionals,EC2N 3AQ,Administration,
HM Procurator General and Treasury Solicitor,Government Legal Department,26/08/2021,Agency Staff: Legal,Litigation Division,Alexander Mann Solutions Limited,229878,57092.77,Payment for interim legal professionals,EC2N 3AQ,Administration,
HM Procurator General and Treasury Solicitor,Government Legal Department,26/08/2021,Agency Staff: Legal,Litigation Division,Alexander Mann Solutions Limited,229886,47482.22,Payment for interim legal professionals,EC2N 3AQ,Administration,
HM Procurator General and Treasury Solicitor,Government Legal Department,31/08/2021,Network Services,Corporate Resources Group,Colt Technology Services,229942,27101.074,Payment for IT network services ,EC3A 7QN,Administration,
HM Procurator General and Treasury Solicitor,Government Legal Department,31/08/2021,Solicitor Agent Fees,Legal case disbursements,Tlt Solicitors,963801,49937.93,Payment for professional services for legal case,BS1 6TP,Administration,
HM Procurator General and Treasury Solicitor,Government Legal Department,31/08/2021,Solicitor Agent Fees,Legal case disbursements,Tlt Solicitors,963802,61463.68,Payment for professional services for legal case,BS1 6TP,Administration,
Nil return for Attorney General's Office,,,,,,,,,,,
Nil return for HM Crown Prosecution Service Inspectorate,,,,,,,,,,,
